fUSD/lending_fUSD_20240608
["ID","MTS","AMOUNT","RATE_DAILY","PERIOD"]
[328816877,1717834235728,-481.69023234,0.00013998,2]
[328816878,1717834235738,-162.52861424,0.00013998,2]
[328816879,1717834235748,-1000.0,0.00013998,2]
[328816880,1717834235759,-10970.15287954,0.00013998,2]
[328816881,1717834235770,-165.87813508,0.00013998,2]
[328816882,1717834235780,-3184.01,0.00013998,2]
[328816883,1717834235790,-410.81529252,0.00013998,2]
[328816884,1717834235800,-538.45112809,0.00013998,2]
[328816885,1717834235810,-290.60436732,0.00013998,2]
[328816886,1717834235820,-524.82676745,0.00013998,2]
[328816887,1717834235831,-1337438.57919504,0.00014,2]
[328816888,1717834235841,-161.34015311,0.00014,2]
[328816889,1717834235852,-193.6009936,0.00014,2]
[328816890,1717834235863,-182546.26973906,0.00014,2]
[328816891,1717834236153,-1723.49402903,0.00014,2]
[328816895,1717834238165,-470.79451812,0.00014,2]
[328816896,1717834238180,-2019.18783417,0.00014,2]
[328816897,1717834238226,-317.71779973,0.00014,2]
[328816898,1717834238242,-24901.60709069,0.00014,2]
[328816899,1717834238271,-139231.81729271,0.00014,2]
[328816900,1717834238321,-3477.12828871,0.00014,2]
[328816901,1717834238349,-14996.39036511,0.00014,2]
[328816902,1717834238360,-27584.70700085,0.00014,2]
[328816903,1717834238465,-328.16,0.00014,2]
[328816905,1717834240507,-5551.52776644,0.00014,2]
[328816906,1717834240658,-5570.11871547,0.00014,2]
[328816907,1717834240685,-2654.72704819,0.00014,2]
[328816908,1717834240705,-1818.9,0.00014,2]
[328816909,1717834240718,-1086.34670665,0.00014,2]
[328816910,1717834240740,-892.19844599,0.00014,2]
[328816911,1717834240808,-356.19588052,0.00014,2]
[328816912,1717834240821,-552.33090042,0.00014,2]
[328816913,1717834240833,-520.62998506,0.00014,2]
[328816914,1717834240844,-338.38372811,0.00014,2]
[328816915,1717834240949,-370.95999999,0.00014,2]
[328816926,1717834242862,-69379.42318656,0.00014,2]
[328816927,1717834242944,-69562.52457448,0.00014,2]
[328816928,1717834243098,-3041.00171297,0.00014,2]
[328816929,1717834243251,-397.38654307,0.00014,2]
[328816932,1717834245924,-170.18020903,0.00013999,2]
[328816933,1717834245933,-34605.319791,0.00014,2]
[328816934,1717834246187,-960.80812001,0.00014,2]
[328816935,1717834246320,-855.60377189,0.00014,2]
[328816936,1717834246391,-835.2505,0.00014,2]
[328816937,1717834246542,-1751.48688,0.00014,2]
[328816938,1717834246554,-1562.41529977,0.00014,2]
[328816956,1717834740556,-404.27802441,0.00011028,2]
[328816957,1717834740720,-196.43151,0.00011029,2]
[328816958,1717834740747,-156.65426429,0.00011085,2]
[328816959,1717834740774,-3018.12192984,0.00011085,2]
[328816960,1717834740805,-625.64000523,0.00011086,2]
[328816961,1717834740828,-531.27413985,0.00011086,2]
[328816962,1717834740854,-3100.10909556,0.00011088,2]
[328816963,1717834740876,-1835.0,0.00011142,2]
[328816964,1717834740903,-150.0,0.00011144,2]
[328816965,1717834740926,-159.09632872,0.00011149,2]
[328816966,1717834740951,-173.92399876,0.0001115,2]
[328816967,1717834740977,-1056.99,0.00011255,2]
[328816968,1717834741001,-1413.43,0.00011255,2]
[328816969,1717834741023,-150.99,0.00011255,2]
[328816970,1717834741049,-224.99,0.00011255,2]
[328816971,1717834741072,-999.99,0.00011255,2]
[328816972,1717834741096,-499.99,0.00011255,2]
[328816973,1717834741121,-294.53,0.00011862,2]
[328816974,1717834741145,-500.0,0.00011879,2]
[328816975,1717834741168,-938.63,0.00011879,2]
[328816976,1717834741190,-608.38,0.00011879,2]
[328816977,1717834741215,-1384.11,0.00011879,2]
[328816978,1717834741237,-178.24,0.00011879,2]
[328816979,1717834741260,-1220.67,0.00011898,2]
[328816980,1717834741284,-3617.28,0.00011898,2]
[328816981,1717834741306,-150.99,0.00011898,2]
[328816982,1717834741330,-1404.17,0.00011898,2]
[328816983,1717834741353,-2806.972,0.00011899,2]
[328816984,1717834741376,-2059.36,0.0001192,2]
[328816985,1717834741400,-191.31,0.0001192,2]
[328816986,1717834741423,-8000.23,0.00011957,2]
[328816987,1717834741451,-2611.20547856,0.00012,2]
[328816988,1717834741475,-210.0,0.00012258,2]
[328816989,1717834741499,-161.06,0.00012332,2]
[328816990,1717834741525,-161.06,0.00012342,2]
[328816991,1717834741554,-161.06,0.00012352,2]
[328816992,1717834741580,-161.06,0.00012362,2]
[328816993,1717834741605,-161.06,0.00012373,2]
[328816994,1717834741632,-161.06,0.00012383,2]
[328816995,1717834741657,-161.06,0.00012393,2]
[328816996,1717834741682,-452.96950587,0.00012459,2]
[328816997,1717834741707,-150.99,0.00012459,2]
[328816998,1717834741730,-4833.56,0.00012459,2]
[328816999,1717834741755,-4716.12,0.00012806,2]
[328817000,1717834741780,-1347.26,0.00013025,2]
[328817001,1717834741817,-1000.0,0.00013228,2]
[328817002,1717834741844,-425.93455559,0.00013438,2]
[328817003,1717834741871,-293.0,0.00013484,2]
[328817004,1717834741900,-1056.99,0.00013519,2]
[328817005,1717834741928,-381.52428489,0.00013769,2]
[328817006,1717834741955,-179.01,0.00013775,2]
[328817007,1717834741980,-1000.0,0.000138,2]
[328817008,1717834742005,-500.0,0.000138,2]
[328817009,1717834742033,-159.09632871,0.000138,2]
[328817010,1717834742057,-2500.0,0.000138,2]
[328817011,1717834742083,-2544.91534525,0.000138,2]
[328817012,1717834742109,-413.06,0.00013815,2]
[328817013,1717834742137,-500.0,0.00013888,2]
[328817014,1717834742162,-200.0,0.00013888,2]
[328817015,1717834742186,-536.19769862,0.00013898,2]
[328817016,1717834742211,-17680.16878503,0.00013899,2]
[328817017,1717834742235,-752.43574606,0.000139,2]
[328817018,1717834742262,-235382.6774,0.000139,2]
[328817019,1717834742427,-8331.7401,0.000139,2]
[328817020,1717834742456,-100000.0,0.000139,2]
[328817021,1717834742481,-17383.89979386,0.000139,2]
[328817022,1717834742505,-164.46428183,0.000139,2]
[328817023,1717834742531,-4551.5572979,0.000139,2]
[328817024,1717834742555,-1042.39162484,0.000139,2]
[328817025,1717834742579,-282.63795564,0.000139,2]
[328817026,1717834742603,-255.28933645,0.0001393,2]
[328817027,1717834742627,-3167.28386242,0.00013964,2]
[328817028,1717834742652,-158.38858903,0.00013964,2]
[328817029,1717834742678,-177.019288,0.00013973,2]
[328817030,1717834742703,-3064.8950057,0.00013998,2]
[328817031,1717834742728,-155.0,0.00013998,2]
[328817032,1717834742752,-481.85167187,0.00013998,2]
[328817033,1717834742778,-1052.86360473,0.00013998,2]
[328817034,1717834742803,-296.73266768,0.00013998,2]
[328817035,1717834742827,-155.0,0.00013998,2]
[328817036,1717834742856,-155.0,0.00013998,2]
[328817037,1717834742880,-166.59300028,0.00013998,2]
[328817038,1717834742909,-155.0,0.00013998,2]
[328817039,1717834742936,-3385.76959702,0.00013998,2]
[328817040,1717834742962,-155.0,0.00013998,2]
[328817041,1717834742987,-155.0,0.00013998,2]
[328817042,1717834743012,-238.14002955,0.00013998,2]
[328817043,1717834743037,-157.0781846,0.00013998,2]
[328817044,1717834743060,-463.49031938,0.00013998,2]
[328817045,1717834743083,-155.0,0.00013998,2]
[328817046,1717834743107,-5578.50640192,0.00013998,2]
[328817047,1717834743130,-200.52070043,0.00013998,2]
[328817048,1717834743153,-7549.98372166,0.00013998,2]
[328817049,1717834743201,-8415.28893931,0.00013998,2]
[328817050,1717834743250,-2193.94401019,0.00013998,2]
[328817051,1717834743298,-158.32276938,0.00013998,2]
[328817052,1717834743337,-211.918934,0.00013998,2]
[328817053,1717834743384,-7534.86291177,0.00013998,2]
[328817054,1717834743421,-155.97258321,0.00013998,2]
[328817055,1717834743460,-407.49352188,0.00013998,2]
[328817056,1717834743500,-2668.90190579,0.00013999,2]
[328817057,1717834743545,-155.0,0.00013999,2]
[328817058,1717834743582,-208.14773746,0.00013999,2]
[328817059,1717834743621,-255.57780696,0.00013999,2]
[328817060,1717834743659,-155.0,0.00013999,2]
[328817061,1717834743697,-155.0,0.00013999,2]
[328817062,1717834743737,-155.0,0.00013999,2]
[328817063,1717834743775,-658.84799917,0.00013999,2]
[328817064,1717834743813,-345.62576659,0.00013999,2]
[328817065,1717834743868,-719.21457341,0.00013999,2]
[328817066,1717834743940,-1555765.36133735,0.00014,2]
[328817067,1717834743988,-7692.36152575,0.00014,2]
[328817068,1717834744037,-1755492.08795975,0.00014,2]
[328817069,1717834744080,-151.0,0.00014,2]
[328817070,1717834744119,-151.0,0.00014,2]
[328817071,1717834744157,-151.0,0.00014,2]
[328817072,1717834744195,-151.0,0.00014,2]
[328817073,1717834744232,-2000.0,0.00014,2]
[328817074,1717834744269,-254.554355,0.00014,2]
[328817075,1717834744308,-200.0,0.00014,2]
[328817076,1717834744340,-154.510215,0.00014,2]
[328817077,1717834744364,-154.048628,0.00014,2]
[328817078,1717834744606,-151.0,0.00014,2]
[328817079,1717834744634,-151.0,0.00014,2]
[328817080,1717834744658,-151.0,0.00014,2]
[328817081,1717834744681,-154.082633,0.00014,2]
[328817082,1717834744704,-153.329568,0.00014,2]
[328817083,1717834744728,-151.0,0.00014,2]
[328817084,1717834744750,-151.0,0.00014,2]
[328817085,1717834744772,-151.0,0.00014,2]
[328817086,1717834744796,-151.0,0.00014,2]
[328817087,1717834744818,-151.0,0.00014,2]
[328817088,1717834744843,-151.0,0.00014,2]
[328817089,1717834744870,-2000.0,0.00014,2]
[328817090,1717834744893,-200.0,0.00014,2]
[328817091,1717834744915,-151.0,0.00014,2]
[328817092,1717834744940,-154.127639,0.00014,2]
[328817093,1717834744967,-151.0,0.00014,2]
[328817094,1717834744990,-151.0,0.00014,2]
[328817095,1717834745012,-151.0,0.00014,2]
[328817096,1717834745036,-151.0,0.00014,2]
[328817097,1717834745059,-151.0,0.00014,2]
[328817098,1717834745083,-151.0,0.00014,2]
[328817099,1717834745106,-151.0,0.00014,2]
[328817100,1717834745130,-151.0,0.00014,2]
[328817101,1717834745156,-151.0,0.00014,2]
[328817102,1717834745182,-151.0,0.00014,2]
[328817103,1717834745206,-155.17466401,0.00014,2]
[328817104,1717834745231,-121939.87195129,0.00014,2]
[328817105,1717834745256,-299.68903732,0.00014,2]
[328817106,1717834745281,-2000.0,0.00014,2]
[328817107,1717834745306,-200.0,0.00014,2]
[328817108,1717834745331,-500.0,0.00014,2]
[328817109,1717834745357,-500.0,0.00014,2]
[328817110,1717834745382,-500.0,0.00014,2]
[328817111,1717834745406,-500.0,0.00014,2]
[328817112,1717834745431,-500.0,0.00014,2]
[328817113,1717834745454,-500.0,0.00014,2]
[328817114,1717834745477,-500.0,0.00014,2]
[328817115,1717834745507,-500.0,0.00014,2]
[328817116,1717834745533,-500.0,0.00014,2]
[328817117,1717834745558,-500.0,0.00014,2]
[328817118,1717834745582,-500.0,0.00014,2]
[328817119,1717834745605,-500.0,0.00014,2]
[328817120,1717834745631,-500.0,0.00014,2]
[328817121,1717834745657,-500.0,0.00014,2]
[328817122,1717834745682,-500.0,0.00014,2]
[328817123,1717834745706,-500.0,0.00014,2]
[328817124,1717834745730,-500.0,0.00014,2]
[328817125,1717834745754,-500.0,0.00014,2]
[328817126,1717834745780,-500.0,0.00014,2]
[328817127,1717834745804,-500.0,0.00014,2]
[328817128,1717834745827,-500.0,0.00014,2]
[328817129,1717834745857,-500.0,0.00014,2]
[328817130,1717834745881,-500.0,0.00014,2]
[328817131,1717834745907,-500.0,0.00014,2]
[328817132,1717834745932,-500.0,0.00014,2]
[328817133,1717834745956,-500.0,0.00014,2]
[328817134,1717834745979,-500.0,0.00014,2]
[328817135,1717834746002,-500.0,0.00014,2]
[328817136,1717834746029,-500.0,0.00014,2]
[328817137,1717834746052,-500.0,0.00014,2]
[328817138,1717834746077,-500.0,0.00014,2]
[328817139,1717834746101,-500.0,0.00014,2]
[328817140,1717834746125,-500.0,0.00014,2]
[328817141,1717834746147,-500.0,0.00014,2]
[328817142,1717834746171,-500.0,0.00014,2]
[328817143,1717834746196,-500.0,0.00014,2]
[328817144,1717834746225,-500.0,0.00014,2]
[328817145,1717834746250,-500.0,0.00014,2]
[328817146,1717834746274,-500.0,0.00014,2]
[328817147,1717834746300,-500.0,0.00014,2]
[328817148,1717834746325,-500.0,0.00014,2]
[328817149,1717834746349,-500.0,0.00014,2]
[328817150,1717834746375,-500.0,0.00014,2]
[328817151,1717834746399,-500.0,0.00014,2]
[328817152,1717834746424,-500.0,0.00014,2]
[328817153,1717834746449,-500.0,0.00014,2]
[328817154,1717834746474,-500.0,0.00014,2]
[328817155,1717834746498,-500.0,0.00014,2]
[328817156,1717834746523,-500.0,0.00014,2]
[328817157,1717834746548,-500.0,0.00014,2]
[328817158,1717834746572,-500.0,0.00014,2]
[328817159,1717834746597,-500.0,0.00014,2]
[328817160,1717834746622,-500.0,0.00014,2]
[328817161,1717834746646,-500.0,0.00014,2]
[328817162,1717834746671,-500.0,0.00014,2]
[328817163,1717834746830,-500.0,0.00014,2]
[328817164,1717834746861,-500.0,0.00014,2]
[328817165,1717834746885,-500.0,0.00014,2]
[328817166,1717834746914,-500.0,0.00014,2]
[328817167,1717834746940,-500.0,0.00014,2]
[328817168,1717834746964,-500.0,0.00014,2]
[328817169,1717834746989,-3000.0,0.00014,2]
[328817170,1717834747012,-500.0,0.00014,2]
[328817171,1717834747037,-500.0,0.00014,2]
[328817172,1717834747061,-500.0,0.00014,2]
[328817173,1717834747084,-500.0,0.00014,2]
[328817174,1717834747109,-500.0,0.00014,2]
[328817175,1717834747133,-500.0,0.00014,2]
[328817176,1717834747156,-500.0,0.00014,2]
[328817177,1717834747556,7344.31581828,0.00013898,5]
[328817178,1717834747607,322.3012555,0.000138,2]
[328817179,1717834780439,21460.91188955,0.00014,2]
[328817181,1717834794944,2295.01004,0.00014,2]
[328817182,1717834796408,181.48,0.00011363,2]
[328817184,1717834801532,150.0,0.00013881,2]
[328817185,1717834801572,150.0,0.00013893,2]
[328817186,1717834801754,150.0,0.00013872,2]
[328817187,1717834801793,150.0,0.00013907,2]
[328817188,1717834801828,150.0,0.00013901,2]
[328817189,1717834801978,150.0,0.0001393,2]
[328817190,1717834802017,150.0,0.0001383,2]
[328817191,1717834802054,150.0,0.00013964,2]
[328817192,1717834802108,150.0,0.00013895,2]
[328817193,1717834802163,150.0,0.00013989,2]
[328817194,1717834802229,150.0,0.00013826,2]
[328817195,1717834802271,150.0,0.00013808,2]
[328817196,1717834802334,150.0,0.00013975,2]
[328817197,1717834802386,150.0,0.00013985,2]
[328817198,1717834802437,150.0,0.00013838,2]
[328817199,1717834802486,150.0,0.00013822,2]
[328817200,1717834802552,150.0,0.00013952,2]
[328817201,1717834802599,150.0,0.0001385,2]
[328817202,1717834802660,150.0,0.00013924,2]
[328817203,1717834817649,571.698,0.000138,2]
[328817204,1717834820559,159.317359,0.00013973,2]
[328817205,1717834828121,250.0,0.00013954,2]
[328817206,1717834830877,23900.0,0.00013887,2]
[328817207,1717834838208,2500.0,0.00014,2]
[328817208,1717834852296,300.0,0.00013978,2]
[328817209,1717834861371,150.0,0.00013902,2]
[328817210,1717834861410,150.0,0.00013785,2]
[328817211,1717834861449,150.0,0.00013989,2]
[328817212,1717834861504,150.0,0.0001384,2]
[328817213,1717834861542,150.0,0.00013965,2]
[328817214,1717834861577,150.0,0.00013941,2]
[328817215,1717834861616,150.0,0.00013982,2]
[328817216,1717834861651,150.0,0.00013779,2]
[328817217,1717834861706,150.0,0.0001394,2]
[328817218,1717834861745,150.0,0.00013948,2]
[328817219,1717834861787,150.0,0.00013832,2]
[328817220,1717834861838,150.0,0.00013823,2]
[328817221,1717834861886,150.0,0.00013888,2]
[328817222,1717834861936,150.0,0.00013882,2]
[328817223,1717834861971,150.0,0.00013953,2]
[328817224,1717834862015,150.0,0.00013774,2]
[328817225,1717834862057,150.0,0.00013782,2]
[328817226,1717834862538,150.0,0.00013994,2]
[328817227,1717834862581,150.0,0.00013902,2]
[328817228,1717834862628,150.0,0.00013817,2]
[328817229,1717834862662,150.0,0.00013929,2]
[328817230,1717834862726,150.0,0.00013991,2]
[328817231,1717834862768,150.0,0.00013904,2]
[328817232,1717834862807,150.0,0.00013949,2]
[328817233,1717834862848,150.0,0.0001386,2]
[328817234,1717834862883,150.0,0.00013848,2]
[328817235,1717834862935,150.0,0.00013958,2]
[328817236,1717834862988,150.0,0.00013825,2]
[328817237,1717834863035,150.0,0.00013771,2]
[328817238,1717834863073,150.0,0.00013786,2]
[328817239,1717834863112,150.0,0.00013962,2]
[328817240,1717834863151,150.0,0.00013945,2]
[328817241,1717834863190,150.0,0.00013941,2]
[328817242,1717834863264,150.0,0.00013809,2]
[328817243,1717834863325,150.0,0.00013933,2]
[328817244,1717834863359,150.0,0.00013805,2]
[328817245,1717834863403,150.0,0.00013784,2]
[328817246,1717834863444,150.0,0.00013844,2]
[328817247,1717834863490,150.0,0.00013998,2]
[328817248,1717834863524,150.0,0.00013807,2]
[328817249,1717834863563,150.0,0.0001379,2]
[328817250,1717834863601,150.0,0.0001396,2]
[328817251,1717834863640,150.0,0.0001398,2]
[328817252,1717834863683,150.0,0.00013846,2]
[328817253,1717834863721,150.0,0.00013837,2]
[328817254,1717834863764,150.0,0.00013943,2]
[328817255,1717834863804,150.0,0.00013738,2]
[328817256,1717834863994,150.0,0.00013929,2]
[328817257,1717834864030,150.0,0.00013995,2]
[328817258,1717834864078,150.0,0.00013976,2]
[328817259,1717834864126,150.0,0.00013776,2]
[328817260,1717834864166,150.0,0.00013957,2]
[328817261,1717834864205,150.0,0.00013819,2]
[328817262,1717834864244,150.0,0.00013895,2]
[328817263,1717834864325,150.0,0.00014,2]
[328817264,1717834864420,150.0,0.00013916,2]
[328817265,1717834864455,150.0,0.00013767,2]
[328817266,1717834864492,150.0,0.00013842,2]
[328817267,1717834864527,150.0,0.00013981,2]
[328817268,1717834864568,150.0,0.00013927,2]
[328817269,1717834864621,150.0,0.00013923,2]
[328817270,1717834864656,150.0,0.00013931,2]
[328817271,1717834864690,150.0,0.00013825,2]
[328817272,1717834864734,150.0,0.00013848,2]
[328817273,1717834864774,150.0,0.00013972,2]
[328817274,1717834864835,150.0,0.00013792,2]
[328817275,1717834864926,150.0,0.00013818,2]
[328817276,1717834865003,150.0,0.00013884,2]
[328817277,1717834865049,150.0,0.00013959,2]
[328817278,1717834865097,150.0,0.00013781,2]
[328817279,1717834865132,150.0,0.00013864,2]
[328817280,1717834865217,150.0,0.00013824,2]
[328817281,1717834865284,150.0,0.00013975,2]
[328817282,1717834865330,150.0,0.00013779,2]
[328817283,1717834865381,150.0,0.00013815,2]
[328817284,1717834865418,150.0,0.00013736,2]
[328817285,1717834865458,150.0,0.00013912,2]
[328817286,1717834865498,150.0,0.00013883,2]
[328817287,1717834865539,150.0,0.0001399,2]
[328817288,1717834865579,150.0,0.00013875,2]
[328817289,1717834865635,150.0,0.00013737,2]
[328817290,1717834865690,150.0,0.00013894,2]
[328817291,1717834865735,150.0,0.00013835,2]
[328817292,1717834865770,150.0,0.00013754,2]
[328817293,1717834865805,178.70903807,0.00013769,2]
[328817294,1717834865848,150.0,0.00013765,2]
[328817295,1717834865884,1078.52,0.00013283,2]
[328817296,1717834865933,150.0,0.00013794,2]
[328817297,1717834865986,150.0,0.00013774,2]
[328817298,1717834866024,150.0,0.00013947,2]
[328817299,1717834866185,150.0,0.00013848,2]
[328817300,1717834866225,150.0,0.00013914,2]
[328817301,1717834866260,150.0,0.00013865,2]
[328817302,1717834866308,150.0,0.00013926,2]
[328817303,1717834866354,150.0,0.00013755,2]
[328817304,1717834866403,150.0,0.00013883,2]
[328817305,1717834866453,150.0,0.00013888,2]
[328817306,1717834866489,150.0,0.00013981,2]
[328817307,1717834866536,150.0,0.00013991,2]
[328817308,1717834866583,150.0,0.00013812,2]
[328817309,1717834866622,150.0,0.00013893,2]
[328817310,1717834866664,150.0,0.00013851,2]
[328817311,1717834866707,150.0,0.00013987,2]
[328817312,1717834869719,150.0,0.00013845,2]
[328817313,1717834869901,150.0,0.00013909,2]
[328817314,1717834869938,150.0,0.00013792,2]
[328817315,1717834869999,150.0,0.00013925,2]
[328817316,1717834870096,150.0,0.00013731,2]
[328817317,1717834870146,150.0,0.00013955,2]
[328817318,1717834870207,150.0,0.00013874,2]
[328817319,1717834870408,150.0,0.00013746,2]
[328817320,1717834870457,150.0,0.00013872,2]
[328817321,1717834870572,150.0,0.00013937,2]
[328817322,1717834870622,150.0,0.00013954,2]
[328817323,1717834870667,150.0,0.00013825,2]
[328817324,1717834870701,150.0,0.00013851,2]
[328817325,1717834870746,150.0,0.00013953,2]
[328817326,1717834870801,150.0,0.00013881,2]
[328817327,1717834870840,150.0,0.00013953,2]
[328817328,1717834870883,150.0,0.00013817,2]
[328817329,1717834870941,150.0,0.00013954,2]
[328817330,1717834870992,150.0,0.00013848,2]
[328817331,1717834871042,150.0,0.00013962,2]
[328817332,1717834871094,150.0,0.00013907,2]
[328817333,1717834871146,150.0,0.00013771,2]
[328817334,1717834871209,150.0,0.00013944,2]
[328817335,1717834871262,150.0,0.00013928,2]
[328817336,1717834871315,150.0,0.00013835,2]
[328817337,1717834871365,150.0,0.00013955,2]
[328817338,1717834871426,150.0,0.0001387,2]
[328817339,1717834871482,150.0,0.00013798,2]
[328817340,1717834871530,150.0,0.00013895,2]
[328817341,1717834871569,150.0,0.00013747,2]
[328817342,1717834871636,150.0,0.00013894,2]
[328817343,1717834871687,150.0,0.00013981,2]
[328817344,1717834871740,150.0,0.00013745,2]
[328817345,1717834871776,150.0,0.00013742,2]
[328817346,1717834871812,150.0,0.00013917,2]
[328817347,1717834871850,150.0,0.00013887,2]
[328817348,1717834871973,150.0,0.00013759,2]
[328817349,1717834872030,150.0,0.00013891,2]
[328817350,1717834872089,150.0,0.00013958,2]
[328817351,1717834872170,150.0,0.0001388,2]
[328817352,1717834872225,150.0,0.00013803,2]
[328817353,1717834872284,150.0,0.00013909,2]
[328817354,1717834872473,150.0,0.00013866,2]
[328817355,1717834872531,150.0,0.0001384,2]
[328817356,1717834872984,150.0,0.00013912,2]
[328817357,1717834873035,150.0,0.0001384,2]
[328817358,1717834873115,150.0,0.0001384,2]
[328817359,1717834873149,150.0,0.00013735,2]
[328817360,1717834873201,150.0,0.00013824,2]
[328817361,1717834873244,150.0,0.00013872,2]
[328817362,1717834873307,150.0,0.00013925,2]
[328817363,1717834873353,150.0,0.00013946,2]
[328817364,1717834873396,150.0,0.00013993,2]
[328817365,1717834873432,150.0,0.00013915,2]
[328817366,1717834873471,150.0,0.00013948,2]
[328817367,1717834873509,150.0,0.00013919,2]
[328817368,1717834873556,150.0,0.00013733,2]
[328817369,1717834873598,150.0,0.00013956,2]
[328817370,1717834873646,150.0,0.00013988,2]
[328817371,1717834873682,150.0,0.00013945,2]
[328817372,1717834873741,150.0,0.00013742,2]
[328817373,1717834873777,150.0,0.00013803,2]
[328817374,1717834873821,150.0,0.00013753,2]
[328817375,1717834873867,150.0,0.00013745,2]
[328817376,1717834873920,150.0,0.00013807,2]
[328817377,1717834873959,150.0,0.00013867,2]
[328817378,1717834874037,150.0,0.00013896,2]
[328817379,1717834874077,150.0,0.00013884,2]
[328817380,1717834874118,150.0,0.00013823,2]
[328817381,1717834874158,150.0,0.00013801,2]
[328817382,1717834874207,150.0,0.00013764,2]
[328817383,1717834874244,150.0,0.00013745,2]
[328817384,1717834874290,150.0,0.00013965,2]
[328817385,1717834874343,150.0,0.00013925,2]
[328817386,1717834874510,150.0,0.00013731,2]
[328817387,1717834874550,150.0,0.00013856,2]
[328817388,1717834874591,150.0,0.00013957,2]
[328817389,1717834874648,150.0,0.00013817,2]
[328817390,1717834874821,150.0,0.00013998,2]
[328817391,1717834874904,150.0,0.00013746,2]
[328817392,1717834874947,150.0,0.00013854,2]
[328817393,1717834874990,150.0,0.0001398,2]
[328817394,1717834875087,150.0,0.00013886,2]
[328817395,1717834875140,150.0,0.00013972,2]
[328817396,1717834875198,150.0,0.00013898,2]
[328817397,1717834875252,150.0,0.00013739,2]
[328817398,1717834875304,150.0,0.00013797,2]
[328817399,1717834875363,150.0,0.00013984,2]
[328817400,1717834875410,150.0,0.00013962,2]
[328817401,1717834875470,150.0,0.00013822,2]
[328817402,1717834875523,150.0,0.00013831,2]
[328817403,1717834875574,150.0,0.00013827,2]
[328817404,1717834875628,150.0,0.0001383,2]
[328817405,1717834875686,150.0,0.00013797,2]
[328817406,1717834875743,150.0,0.00013998,2]
[328817407,1717834875795,150.0,0.00013784,2]
[328817408,1717834875836,150.0,0.00013895,2]
[328817409,1717834875886,150.0,0.00013828,2]
[328817410,1717834875928,150.0,0.00013961,2]
[328817411,1717834875968,150.0,0.00013808,2]